bitfinex-derivatives/quotes_SOLF0:USTF0_20260118
["timestamp","ask_amount","ask_price","bid_price","bid_amount"]
[1768778553216,3.29802116,141.06,141.02,0.04505367]
[1768778554716,3.29802116,141.04,140.95,6.3871]
[1768778554928,3.29802116,141.01,140.93,3.19907688]
[1768778555111,3.29802116,141.01,140.92,1.79957028]
[1768778555313,3.29802116,140.99,140.89,3.19907688]
[1768778555615,3.29802116,140.98,140.89,4.99864716]
[1768778555915,3.29802116,140.95,140.87,1.79957028]
[1768778556114,1.79957028,140.94,140.86,3.19907688]
[1768778556319,3.29802116,140.94,140.86,3.19907688]
[1768778556719,5.09759144,140.94,140.86,3.19907688]
[1768778556913,3.29802116,140.91,140.81,3.19907688]
[1768778557321,3.29802116,140.89,140.78,102.67397688]
[1768778557816,3.29802116,140.89,140.8,1.79957028]
[1768778558016,3.16260182,140.88,140.79,9.76802471]
[1768778558219,5.01179114,140.85,140.75,99.4982]
[1768778558417,5.01179114,140.85,140.73,121.77906186]
[1768778558418,3.16260182,140.82,140.73,22.26446186]
[1768778558619,1.79957028,140.8,140.73,18.89103715]
[1768778558822,3.16260182,140.79,140.73,18.89103715]
[1768778559121,1.79957028,140.83,140.73,15.5158597]
[1768778559316,105.8196,140.86,140.74,3.37342471]
[1768778559520,1.79957028,140.83,140.73,13.94200527]
[1768778559720,0.0542803,140.79,140.73,12.14243499]
[1768778559917,0.0542803,140.79,140.73,13.94200527]
[1768778560115,0.0542803,140.79,140.73,12.14243499]
[1768778560418,105.82,140.86,140.73,15.5158597]
[1768778560616,99.4114,140.88,140.74,3.37342471]
[1768778560817,99.4032,140.89,140.79,1.79957028]
[1768778561118,99.3848,140.92,140.8,3.37342471]
[1768778561321,99.3805,140.93,140.8,3.37342471]
[1768778561619,99.3673,140.95,140.82,7.98683932]
[1768778561620,105.7548,140.95,140.82,7.98683932]
[1768778561817,4.61341461,140.9,140.76,102.86452471]
[1768778562118,0.05430211,140.88,140.76,3.37342471]
[1768778562420,99.4115,140.88,140.73,20.12927431]
[1768778562620,99.4115,140.88,140.73,119.64217431]
[1768778562822,4.61341461,140.87,140.73,119.64217431]
[1768778563021,4.61341461,140.87,140.74,3.37342471]
[1768778563421,104.03411461,140.87,140.74,3.37342471]
[1768778563920,4.61341461,140.87,140.74,102.87902471]
[1768778564118,99.3995,140.9,140.74,102.87902471]
[1768778564119,4.61341461,140.89,140.77,3.37342471]
[1768778564321,103.99661461,140.92,140.79,3.42058223]
[1768778564528,104.00631461,140.91,140.79,3.42058223]
[1768778564725,104.00631461,140.91,140.79,3.37342471]
[1768778565127,99.3988,140.9,140.79,3.37342471]
[1768778565631,105.7887,140.9,140.76,107.47743932]
[1768778566024,105.7887,140.9,140.77,3.37342471]
[1768778569226,99.4251,140.86,140.77,3.37342471]
[1768778569533,99.4251,140.86,140.74,7.98643213]
[1768778569934,105.8166,140.86,140.75,3.37342471]
[1768778570132,0.046215,140.83,140.75,3.37342471]
[1768778570434,0.046215,140.83,140.73,15.5158597]
[1768778571037,99.4451,140.84,140.73,15.5158597]
[1768778571236,0.05271697,140.79,140.73,15.5158597]
[1768778571538,0.05271697,140.79,140.73,12.14243499]
[1768778572225,0.05271697,140.79,140.73,3.499e-05]
[1768778572428,99.52681697,140.79,140.73,3.499e-05]
[1768778572629,99.491,140.77,140.73,3.499e-05]
[1768778572828,99.4952,140.76,140.73,3.499e-05]
[1768778573038,99.491,140.77,140.73,3.499e-05]
[1768778573334,105.8914,140.76,140.73,3.499e-05]
[1768778573527,99.5055,140.75,140.63,298.61300742]
[1768778573731,99.5055,140.75,140.62,3.22487097]
[1768778573732,99.5163,140.73,140.62,3.22487097]
[1768778574038,6.3983,140.72,140.62,3.22487097]
[1768778574245,105.9219,140.72,140.62,3.22487097]
[1768778574534,6.397,140.74,140.61,3.22487097]
[1768778574836,6.397,140.74,140.62,3.22487097]
[1768778575144,99.5055,140.75,140.63,3.22487097]
[1768778575335,367.9981,140.76,140.63,3.22487097]
[1768778575540,99.4831,140.78,140.66,3.22487097]
[1768778575739,99.4705,140.8,140.69,3.22487097]
[1768778575938,99.4739,140.79,140.69,3.22487097]
[1768778576236,105.8791,140.78,140.69,3.22487097]
[1768778576431,99.4893,140.77,140.69,3.22487097]
[1768778576627,99.4952,140.76,140.66,3.22487097]
[1768778576835,105.9012,140.75,140.66,3.22487097]
[1768778577039,105.9465889,140.75,140.66,3.22487097]
[1768778577231,6.3979,140.72,140.6,268.36]
[1768778577438,99.5096,140.74,140.6,3.22487097]
[1768778577633,99.5234,140.72,140.6,3.22487097]
[1768778578030,105.9297,140.71,140.6,3.22487097]
[1768778578246,99.5391,140.7,140.6,3.22487097]
[1768778578538,0.04556843,140.67,140.56,99.6362]
[1768778578736,0.04556843,140.67,140.57,4.61300742]
[1768778578943,0.04556843,140.67,140.57,99.6289]
[1768778579138,99.5586,140.67,140.54,99.649]
[1768778579333,2.3202702,140.67,140.59,4.61300742]
[1768778579741,2.3202702,140.64,140.54,1.23772941]
[1768778579943,2.3202702,140.62,140.51,4.61300742]
[1768778580142,2.3202702,140.6,140.47,99.6962]
[1768778580440,2.3202702,140.6,140.48,1.23814776]
[1768778580441,2.3202702,140.57,140.48,1.23814776]
[1768778580642,2.3202702,140.53,140.42,3.22487097]
[1768778580939,2.3202702,140.52,140.42,3.22487097]
[1768778581133,101.9379702,140.59,140.45,3.22487097]
[1768778581338,99.6306,140.57,140.46,3.22487097]
[1768778581635,99.6157,140.59,140.46,3.22487097]
[1768778581837,99.605,140.61,140.49,3.22487097]
[1768778582343,268.7,140.65,140.49,3.22487097]
[1768778582344,99.5569,140.68,140.55,3.22487097]
[1768778582645,6.93327762,140.66,140.55,3.22487097]
[1768778582943,2.3202702,140.66,140.55,3.22487097]
[1768778583345,2.3202702,140.62,140.48,104.30410742]
[1768778583542,2.3202702,140.61,140.49,99.6829]
[1768778583737,2.3202702,140.61,140.51,102.89617097]
[1768778583939,0.05403634,140.56,140.54,0.05391346]
[1768778584338,106.53827762,140.61,140.5,3.22487097]
[1768778584339,2.3202702,140.61,140.5,3.22487097]
[1768778584735,4.61300742,140.64,140.52,3.22487097]
[1768778584937,2.3202702,140.63,140.52,3.22487097]
[1768778585537,104.17830742,140.67,140.55,3.22487097]
[1768778585538,8.7208702,140.67,140.55,3.22487097]
[1768778585739,2.3202702,140.67,140.55,3.22487097]
[1768778585943,101.8959702,140.65,140.53,4.61300742]
[1768778586139,2.3202702,140.64,140.53,4.61300742]
[1768778586339,2.3202702,140.64,140.53,3.22487097]
[1768778586742,101.9252702,140.61,140.49,3.22487097]
[1768778587044,99.6181,140.59,140.49,3.22487097]
[1768778587244,2.3202702,140.55,140.45,3.22487097]
[1768778587449,2.3202702,140.55,140.41,3.43853096]
[1768778587450,2.3202702,140.54,140.41,3.43853096]
[1768778587742,2.3202702,140.56,140.44,102.94217097]
[1768778587944,2.3202702,140.56,140.43,104.33820742]
[1768778587945,101.9641702,140.55,140.43,4.61300742]
[1768778588141,2.3202702,140.54,140.46,0.0460143]
[1768778588335,108.3500702,140.58,140.46,3.27088527]
[1768778588536,101.9536702,140.57,140.46,3.27088527]
[1768778588744,2.3202702,140.57,140.46,3.27088527]
[1768778588940,106.0418,140.56,140.46,7.83787839]
[1768778589148,6.4052,140.56,140.46,7.83787839]
[1768778589345,101.9527702,140.57,140.42,7.83787839]
[1768778589346,106.0574,140.54,140.42,7.83787839]
[1768778589550,101.9715702,140.54,140.42,7.83787839]
[1768778589940,106.0733,140.52,140.47,0.05268181]
[1768778590153,101.9712702,140.54,140.42,3.22487097]
[1768778590348,99.6591,140.53,140.42,3.22487097]
[1768778590653,99.6325,140.57,140.45,3.22487097]
[1768778590850,2.3202702,140.58,140.45,3.22487097]
[1768778591045,2.3202702,140.58,140.48,3.22487097]
[1768778591247,101.9171702,140.62,140.49,3.22487097]
[1768778591446,2.3202702,140.62,140.51,3.22487097]
[1768778591642,99.5459,140.69,140.56,3.22487097]
[1768778591956,99.5214,140.73,140.6,3.22487097]
[1768778592255,99.5214,140.73,140.62,7.83787839]
[1768778592256,99.5284,140.72,140.62,7.83787839]
[1768778592552,2.3202702,140.74,140.62,3.22487097]
[1768778592749,2.3202702,140.74,140.64,4.61300742]
[1768778593252,2.3202702,140.74,140.64,7.83787839]
[1768778593457,101.8030702,140.78,140.67,4.61300742]
[1768778593751,6.3964,140.76,140.65,7.83787839]
[1768778594050,6.3964,140.76,140.66,3.22487097]
[1768778594352,8.7154702,140.78,140.66,9.62507097]
[1768778594654,99.4613,140.81,140.69,3.22487097]
[1768778594850,99.4335,140.85,140.68,4.61300742]
[1768778594851,8.7122702,140.86,140.73,105.9123]
[1768778595054,99.4456,140.83,140.72,3.22487097]
[1768778595450,99.4491,140.83,140.72,3.22487097]
[1768778595952,99.4626,140.81,140.68,7.83787839]
[1768778596356,2.3202702,140.78,140.68,3.22487097]
[1768778596548,2.3202702,140.75,140.64,3.22487097]
[1768778597255,99.5189,140.73,140.64,3.22487097]
[1768778597552,106.45217762,140.73,140.6,3.22487097]
[1768778597746,99.527,140.72,140.6,3.22487097]
[1768778598050,0.04615906,140.7,140.6,3.22487097]
[1768778598552,8.7176702,140.73,140.61,3.22487097]
[1768778599348,0.04931756,140.68,140.61,3.22487097]
[1768778599747,4.61300742,140.76,140.63,3.22487097]
[1768778599952,99.5028,140.75,140.63,3.22487097]
[1768778600254,99.5165,140.73,140.63,3.22487097]
[1768778600650,99.5261,140.72,140.63,3.22487097]
[1768778601352,105.9244,140.72,140.6,3.22487097]
[1768778601556,99.5349,140.71,140.6,3.22487097]
[1768778601751,99.5261,140.72,140.6,3.22487097]
[1768778602055,108.2200702,140.75,140.62,3.22487097]
[1768778602246,99.5117,140.74,140.62,3.22487097]
[1768778602747,6.3974,140.74,140.62,3.22487097]
[1768778603057,101.82369201,140.74,140.63,3.09655227]
[1768778603260,6.3978,140.73,140.63,3.09655227]
[1768778604657,2.31349201,140.74,140.63,3.09655227]
[1768778604952,101.82609201,140.74,140.63,3.09655227]
[1768778605152,101.84029201,140.72,140.6,3.09655227]
[1768778605353,6.3986,140.71,140.6,3.09655227]
[1768778605657,105.34887477,140.76,140.63,3.09655227]
[1768778605658,101.81209201,140.76,140.63,3.09655227]
[1768778605853,99.5098,140.74,140.63,3.09655227]
[1768778606258,101.81599201,140.75,140.63,3.09655227]
[1768778606445,99.4986,140.76,140.63,3.09655227]
[1768778606650,101.79839201,140.78,140.64,3.09655227]
[1768778606951,6.3961,140.76,140.64,3.09655227]
[1768778607355,6.3961,140.76,140.65,3.09655227]
[1768778607356,99.5025,140.75,140.65,3.09655227]
[1768778607552,101.81599201,140.75,140.65,3.09655227]
[1768778607747,2.31349201,140.75,140.65,3.09655227]
[1768778607951,108.21239201,140.75,140.65,3.09655227]
[1768778608455,108.21239201,140.75,140.6,9.49975227]
[1768778608456,99.5238,140.72,140.6,9.49975227]
[1768778608660,101.89082236,140.71,140.6,3.09655227]
[1768778608959,6.3993,140.69,140.6,3.09655227]
[1768778609155,99.5658,140.66,140.56,3.09655227]
[1768778609353,2.26470107,140.65,140.55,3.09655227]
[1768778609550,8.66580107,140.65,140.55,9.50205227]
[1768778609960,99.553,140.68,140.56,3.09655227]
[1768778610259,0.05257302,140.61,140.56,3.09655227]
[1768778610858,99.5609,140.67,140.56,3.09655227]
[1768778611057,6.401,140.66,140.56,3.09655227]
[1768778611351,2.26470107,140.67,140.57,3.09655227]
[1768778611556,6.3997,140.68,140.57,3.09655227]
[1768778612757,8.66360107,140.7,140.59,3.09655227]
[1768778613764,8.66360107,140.7,140.6,9.49955227]
[1768778614054,2.26470107,140.7,140.6,9.49955227]
[1768778614258,11.01100742,140.72,140.61,9.49915227]
[1768778614461,11.01100742,140.72,140.62,3.09655227]
[1768778614760,6.398,140.72,140.62,3.09655227]
[1768778614962,101.77590107,140.74,140.62,3.09655227]
[1768778614963,8.66170107,140.74,140.62,3.09655227]
[1768778615162,2.26470107,140.74,140.64,3.09655227]
[1768778615361,104.10060742,140.78,140.65,3.09655227]
[1768778615362,106.36530849,140.78,140.65,3.09655227]
[1768778615659,6.3961,140.76,140.65,9.49725227]
[1768778615959,6.3961,140.76,140.61,99.5961]
[1768778615960,2.26470107,140.73,140.58,99.6217]
[1768778616259,2.26470107,140.72,140.61,3.09655227]
[1768778617863,6.3984,140.71,140.61,9.49925227]
[1768778618065,6.3984,140.71,140.61,3.09655227]
[1768778618363,6.3984,140.71,140.65,0.04958147]
[1768778619266,2.26470107,140.72,140.65,0.04958147]
[1768778620762,2.26683733,140.76,140.65,3.32060139]
[1768778620965,99.4828,140.78,140.65,3.32060139]
[1768778621269,99.4828,140.78,140.65,3.27101992]
[1768778621659,0.04888916,140.73,140.7,0.05208284]
[1768778622481,0.04888916,140.73,140.63,99.5815]
[1768778622482,2.31572649,140.73,140.61,276.52402734]
[1768778622762,2.31572649,140.73,140.62,3.27101992]
[1768778622969,6.3971,140.74,140.65,3.27101992]
[1768778623665,6.3963,140.76,140.65,3.27101992]
[1768778623861,0.05450003,140.71,140.65,9.67181992]
[1768778624062,6.3963,140.76,140.65,9.67181992]
[1768778624860,6.3963,140.76,140.66,3.27101992]
[1768778625873,6.3968,140.75,140.66,3.27101992]
[1768778627074,2.26683733,140.77,140.67,3.27101992]
[1768778627281,2.26683733,140.8,140.68,3.27101992]
[1768778627662,8.66153733,140.8,140.69,9.67021992]
[1768778627959,101.71383733,140.83,140.7,3.27101992]
[1768778628159,6.394,140.81,140.71,6.3979]
[1768778628365,6.394,140.81,140.71,9.66891992]
[1768778629965,6.394,140.81,140.69,6.399]
[1768778629966,2.26683733,140.8,140.69,6.399]
[1768778630379,101.74473733,140.79,140.69,3.27101992]
[1768778631277,2.26683733,140.79,140.69,3.27101992]
[1768778632483,6.3954,140.78,140.69,3.27101992]
[1768778632869,2.26683733,140.79,140.69,3.27101992]
[1768778632870,6.396,140.77,140.69,3.27101992]
[1768778633276,2.26683733,140.79,140.69,3.27101992]
[1768778633984,2.26545923,140.77,140.67,3.14770676]
[1768778634379,2.26545923,140.77,140.68,6.3995]
[1768778634681,6.3954,140.78,140.68,9.54720676]
[1768778634879,8.65975923,140.8,140.71,9.54580676]
[1768778635179,104.06381776,140.83,140.71,9.54580676]
[1768778635180,6.88227699,140.83,140.71,3.14770676]
[1768778635775,6.88227699,140.83,140.73,3.14770676]
[1768778635776,6.3935,140.82,140.73,3.14770676]
[1768778636172,6.3927,140.84,140.74,3.14770676]
[1768778636781,6.3927,140.84,140.75,9.54400676]
[1768778637078,8.65705923,140.86,140.76,3.14770676]
[1768778637487,2.26545923,140.89,140.78,9.54260676]
[1768778637876,6.3908,140.88,140.79,3.14770676]
[1768778640884,2.26545923,140.86,140.76,3.14770676]
[1768778641276,0.04930998,140.85,140.76,3.14770676]
[1768778641790,2.26545923,140.84,140.73,9.54500676]
[1768778642485,8.65815923,140.84,140.74,9.54440676]
[1768778642680,0.05444309,140.8,140.74,3.14770676]
[1768778643083,0.05444309,140.8,140.74,9.54440676]
[1768778643782,0.05444309,140.8,140.74,3.14770676]
[1768778645285,0.05444309,140.8,140.68,203.71081776]
[1768778645589,0.05444309,140.8,140.7,3.14770676]
[1768778645789,6.88227699,140.82,140.7,3.14770676]
[1768778646189,0.05267473,140.76,140.7,3.14770676]
[1768778646591,6.88227699,140.82,140.7,3.14770676]
[1768778646792,6.3941,140.81,140.72,6.3977]
[1768778647188,6.88227699,140.82,140.73,3.14770676]
[1768778647395,6.88227699,140.85,140.73,3.14770676]
[1768778647596,2.26545923,140.85,140.73,3.14770676]
[1768778647893,8.65765923,140.85,140.75,6.3961]
[1768778648292,2.26545923,140.85,140.76,6.3958]
[1768778648597,6.88227699,140.88,140.77,3.14770676]
[1768778648996,13.27307699,140.88,140.78,6.3949]
[1768778649291,4.61681776,140.9,140.79,3.14770676]
[1768778649491,13.27197699,140.9,140.79,9.54210676]
[1768778649693,13.27197699,140.9,140.79,3.14770676]
[1768778650293,6.3908,140.88,140.79,3.14770676]
[1768778650601,2.26545923,140.89,140.79,3.14770676]
[1768778651093,8.65585923,140.89,140.79,3.14770676]
[1768778651292,8.65585923,140.89,140.79,9.54200676]
[1768778652713,8.65585923,140.89,140.8,9.54170676]
[1768778653705,2.26545923,140.89,140.8,9.54170676]
[1768778654295,2.26545923,140.89,140.8,3.14770676]
[1768778655310,6.3908,140.88,140.8,3.14770676]
[1768778655503,2.26545923,140.89,140.8,3.14770676]
[1768778655807,2.26545923,140.89,140.8,9.54170676]
[1768778658905,13.27127699,140.92,140.81,3.14770676]
[1768778659211,2.26545923,140.91,140.81,3.14770676]
[1768778659406,8.65485923,140.91,140.82,6.3931]
[1768778660315,0.0464409,140.88,140.82,6.3931]
[1768778660709,0.0464409,140.88,140.85,0.04549523]
[1768778664512,8.65474942,140.94,140.85,0.04549523]
[1768778664902,8.65474942,140.94,140.84,6.3922]
[1768778665111,2.26654942,140.93,140.84,9.66369415]
[1768778665412,8.65504942,140.93,140.84,9.66369415]
[1768778666010,8.65504942,140.93,140.87,0.05061883]
[1768778668215,6.3874,140.95,140.87,9.71291298]
[1768778668517,2.26654942,140.97,140.87,3.32211298]
[1768778669011,2.26654942,140.97,140.87,3.27149415]
[1768778669217,6.3871,140.96,140.88,9.66189415]
[1768778669418,2.26654942,140.96,140.85,3.27149415]
[1768778670213,2.26654942,140.94,140.85,3.27149415]
[1768778670416,2.26654942,140.93,140.83,3.27149415]
[1768778670916,2.26654942,140.93,140.85,9.66349415]
[1768778672712,2.26654942,140.93,140.86,6.3914]
[1768778673017,2.26654942,140.96,140.87,3.27149415]
[1768778673820,2.26654942,140.96,140.87,9.66229415]
[1768778674707,8.65424942,140.95,140.87,3.27149415]
[1768778675609,6.388,140.94,140.84,3.27149415]
[1768778676318,8.65454942,140.94,140.84,3.27149415]
[1768778676506,8.65504942,140.93,140.84,3.27149415]
[1768778677719,2.26654942,140.93,140.85,6.3918]
[1768778678615,8.65504942,140.93,140.84,3.27149415]
[1768778679216,8.65504942,140.93,140.84,9.66379415]
[1768778679717,6.3877,140.95,140.85,3.08895555]
[1768778680110,8.65353033,140.95,140.85,3.08895555]
[1768778680313,8.65353033,140.95,140.85,9.48055555]
[1768778680814,6.388,140.94,140.85,9.48055555]
[1768778681421,6.388,140.94,140.86,6.3914]
[1768778681716,6.3889,140.92,140.85,3.08895555]
[1768778681917,6.3889,140.92,140.82,3.08895555]
[1768778682516,8.65403033,140.94,140.84,6.3921]
[1768778683117,2.26583033,140.93,140.84,6.3921]
[1768778683419,8.65423033,140.93,140.84,6.3921]
[1768778684010,8.65423033,140.93,140.85,6.3918]
[1768778685224,6.3891,140.92,140.83,9.48145555]
[1768778685623,6.3891,140.92,140.83,3.08895555]
[1768778685821,8.65533033,140.91,140.82,6.3932]
[1768778686023,2.26583033,140.91,140.82,6.3932]
[1768778686325,2.26583033,140.91,140.81,3.08895555]
[1768778686627,2.26583033,140.91,140.84,6.3923]
[1768778690327,99.3657,140.95,140.81,99.4562]
[1768778690328,8.65393033,140.94,140.85,3.08895555]
[1768778690724,2.26583033,140.94,140.86,3.08895555]
[1768778691825,2.26583033,140.94,140.87,6.3909]
[1768778692924,8.65270721,140.97,140.88,9.57004787]
[1768778693226,8.65270721,140.97,140.88,3.17954787]
[1768778693526,6.3859,140.99,140.89,3.17954787]
[1768778694130,8.65180721,140.99,140.91,6.3891]
[1768778694525,6.3863,140.98,140.89,3.17954787]
[1768778695127,6.3863,140.98,140.9,6.3894]
[1768778696729,8.65220721,140.98,140.89,3.17954787]
[1768778696930,8.65270721,140.97,140.89,3.17954787]
[1768778697425,2.26590721,140.94,140.84,3.17954787]
[1768778698829,8.65410721,140.94,140.86,6.3914]
[1768778699531,8.65440721,140.93,140.84,9.57184787]
[1768778700423,2.26590721,140.92,140.84,3.17954787]
[1768778700625,2.26590721,140.91,140.8,3.17954787]
[1768778700830,2.26590721,140.9,140.77,30.92484787]
[1768778701024,2.26590721,140.88,140.77,102.66424787]
[1768778701230,2.31605479,140.87,140.77,3.17954787]
[1768778701427,2.26590721,140.85,140.75,6.3963]
[1768778701729,2.26590721,140.85,140.74,3.17954787]
[1768778702117,2.26590721,140.85,140.73,99.5122]
[1768778702118,2.26590721,140.84,140.68,3.17954787]
[1768778702318,0.04527443,140.81,140.69,102.72074787]
[1768778702521,0.04527443,140.81,140.7,102.71414787]
[1768778702722,11.00070964,140.83,140.71,109.10644787]
[1768778702926,11.00070964,140.83,140.71,9.57744787]
[1768778703332,0.04745006,140.77,140.71,9.57744787]
[1768778703725,6.3929,140.83,140.72,3.17954787]
[1768778704328,279.41980964,140.85,140.73,3.17954787]
[1768778704530,10.99980964,140.85,140.74,3.17954787]
[1768778704727,104.01880964,140.88,140.75,3.17954787]
[1768778705126,110.43160964,140.85,140.73,6.3973]
[1768778705526,110.43160964,140.85,140.73,9.57684787]
[1768778705827,99.4469,140.83,140.71,6.3982]
[1768778706028,4.60780964,140.82,140.71,6.3982]
[1768778706232,104.06070964,140.82,140.7,3.17954787]
[1768778706441,0.05187719,140.78,140.7,102.71404787]
[1768778706630,0.05187719,140.78,140.71,3.17954787]
[1768778706937,0.05187719,140.78,140.71,102.70914787]
[1768778707240,99.4277,140.86,140.71,102.70914787]
[1768778707241,4.60780964,140.85,140.74,3.17954787]
[1768778707438,367.9187,140.87,140.74,3.17954787]
[1768778708033,6.3915,140.86,140.75,3.17954787]
[1768778708730,6.3923,140.85,140.75,3.17954787]
[1768778709041,104.02010964,140.88,140.75,3.17954787]
[1768778709333,6.392,140.85,140.75,3.17954787]
[1768778709533,6.392,140.85,140.73,99.5126]
[1768778709734,104.03990964,140.85,140.72,3.17954787]
[1768778710129,6.3928,140.84,140.73,6.3973]
[1768778710934,6.3928,140.84,140.73,9.57684787]
[1768778711140,6.3917,140.86,140.74,102.68734787]
[1768778713039,6.3917,140.86,140.75,6.3961]
[1768778714637,6.3922,140.85,140.75,6.3961]
[1768778716046,6.3927,140.84,140.74,3.17954787]
[1768778717837,6.3927,140.84,140.74,9.57624787]
[1768778718540,6.3931,140.83,140.72,6.3977]
[1768778718745,99.4388,140.84,140.72,6.3977]
[1768778718945,0.05244025,140.8,140.69,3.17954787]
[1768778719647,99.4536,140.82,140.69,3.17954787]
[1768778719844,6.3945,140.8,140.7,6.3986]
[1768778720045,0.04695833,140.76,140.7,9.57814787]
[1768778724849,6.3936,140.82,140.72,3.31991285]
[1768778725153,104.01820964,140.88,140.75,3.31991285]
[1768778726249,99.4314,140.85,140.75,3.31991285]
[1768778726450,104.03920964,140.85,140.72,3.31991285]
[1768778726846,99.4393,140.84,140.73,6.3971]
[1768778727046,99.4393,140.84,140.77,0.04481755]
[1768778727349,120.7893,140.84,140.77,0.04481755]
[1768778727550,0.04879743,140.8,140.73,6.3971]
[1768778729852,0.04879743,140.8,140.72,3.31991285]
[1768778730953,6.395,140.79,140.72,3.31991285]
[1768778731947,0.053723,140.77,140.72,3.31991285]
[1768778736449,6.3941,140.81,140.72,3.31991285]
[1768778736651,6.3941,140.81,140.74,3.31991285]
[1768778738362,268.66,140.86,140.74,3.31991285]
[1768778738363,6.3931,140.83,140.74,3.31991285]
[1768778739050,6.3935,140.82,140.74,3.31991285]
[1768778740560,6.3935,140.82,140.75,3.21012382]
[1768778740862,99.4314,140.85,140.75,3.21012382]
[1768778741054,6.3927,140.84,140.75,3.21012382]
[1768778741249,99.4314,140.85,140.75,3.21012382]
[1768778741661,6.393,140.83,140.75,9.60652382]
[1768778741862,389.4309,140.87,140.76,3.21012382]
[1768778743862,6.3927,140.84,140.76,3.21012382]
[1768778744163,99.4268,140.86,140.76,3.21012382]
[1768778744666,6.3934,140.82,140.73,9.60722382]
[1768778744867,99.4413,140.84,140.73,3.21012382]
[1768778745160,6.3932,140.83,140.74,3.21012382]
[1768778745463,104.04910964,140.84,140.74,3.21012382]
[1768778745464,4.60780964,140.84,140.74,3.21012382]
[1768778746761,6.3935,140.82,140.74,3.21012382]
[1768778747057,1.80985904,140.81,140.74,3.21012382]
[1768778747252,6.3943,140.8,140.74,3.21012382]
[1768778747565,1.80985904,140.81,140.71,5.01998286]
[1768778747566,1.80985904,140.79,140.71,5.01998286]
[1768778747867,0.04841353,140.78,140.71,3.21012382]
[1768778748765,8.20575904,140.77,140.69,5.01998286]
[1768778749065,6.3959,140.77,140.69,3.21012382]
[1768778749764,0.05050931,140.74,140.69,3.21012382]
[1768778750263,0.05050931,140.74,140.63,3.21012382]
[1768778750462,6.3976,140.73,140.64,3.21012382]
[1768778750862,99.5048,140.75,140.64,3.21012382]
[1768778750863,99.51,140.74,140.64,3.21012382]
[1768778751165,0.05455009,140.7,140.64,3.21012382]
[1768778753568,6.3972,140.74,140.66,0.0483533]
[1768778753971,99.5048,140.75,140.66,0.0483533]
[1768778754272,368.1284,140.8,140.66,3.0721788]
[1768778754464,4.62298799,140.79,140.66,3.0721788]
[1768778754867,6.3967,140.75,140.67,3.0721788]
[1768778755169,4.62298799,140.79,140.71,0.0480941]
[1768778755767,6.3962,140.76,140.69,3.0721788]
[1768778756073,6.3962,140.76,140.73,0.05442194]
[1768778756370,6.3962,140.76,140.69,3.0721788]
[1768778756371,6.44433253,140.76,140.69,3.0721788]
[1768778757669,0.04813253,140.76,140.69,3.0721788]
[1768778757870,0.04813253,140.76,140.7,3.0721788]
[1768778761473,0.04813253,140.76,140.65,3.0721788]
[1768778761666,99.54603253,140.76,140.65,3.0721788]
[1768778762066,99.4979,140.76,140.65,3.0721788]
[1768778762471,0.04614892,140.72,140.65,3.0721788]
[1768778762874,0.04614892,140.72,140.65,9.4728788]
[1768778763173,0.04614892,140.72,140.66,3.0721788]
[1768778765076,6.44414892,140.72,140.66,3.0721788]
[1768778765378,0.04614892,140.72,140.66,3.0721788]
[1768778766067,0.04614892,140.72,140.61,4.62298799]
[1768778766385,99.531,140.71,140.63,3.0721788]
[1768778766671,101.46506853,140.7,140.56,174.73515883]
[1768778766874,6.44823334,140.68,140.56,274.36835883]
[1768778767571,6.4,140.68,140.56,274.36835883]
[1768778767972,1.92776853,140.7,140.61,0.04771246]
[1768778768574,1.92776853,140.7,140.59,3.0721788]
[1768778768776,6.3994,140.69,140.61,3.0721788]
[1768778769076,3.74057759,140.7,140.62,3.0721788]
[1768778769275,3.74057759,140.7,140.63,0.04778059]
[1768778769476,1.98042125,140.69,140.63,0.04778059]
[1768778769782,1.81280906,140.67,140.59,3.0721788]
[1768778770081,1.81280906,140.66,140.59,3.0721788]
[1768778770583,6.4015,140.65,140.59,3.0721788]
[1768778771080,0.04838322,140.64,140.59,3.0721788]
[1768778776294,0.04838322,140.64,140.59,4.88498786]
[1768778776597,0.04838322,140.64,140.6,3.0721788]
[1768778779897,0.04838322,140.64,140.57,3.0721788]
[1768778780794,3.84161353,140.64,140.57,3.0721788]
[1768778781004,1.81280906,140.62,140.57,3.0721788]
[1768778781502,8.21500906,140.63,140.57,3.0721788]
[1768778781899,1.86500795,140.61,140.57,3.0721788]
[1768778782099,1.86500795,140.61,140.55,3.0721788]
[1768778782596,1.98042125,140.64,140.56,3.16873557]
[1768778782799,8.38222125,140.64,140.56,3.16873557]
[1768778783001,10.19503031,140.64,140.56,3.16873557]
[1768778783402,10.19503031,140.64,140.59,0.05035276]
[1768778783903,6.4018,140.64,140.59,0.05035276]